bitfinex-derivatives/quotes_SOLF0:USTF0_20251108
["timestamp","ask_amount","ask_price","bid_price","bid_amount"]
[1762599318197,5.01591426,160.8,160.79,5.6003]
[1762599320011,5.01591426,160.8,160.79,8.6503]
[1762599320205,5.01591426,160.8,160.79,5.6003]
[1762599321706,5.01591426,160.8,160.79,8.6503]
[1762599322008,0.04161788,160.81,160.79,8.6503]
[1762599329820,0.04161788,160.81,160.8,3.05]
[1762599330418,3.16,160.86,160.8,3.05]
[1762599330610,3.16,160.84,160.77,3.05]
[1762599330814,7.88676464,160.83,160.77,3.05]
[1762599331018,3.16,160.83,160.77,3.05]
[1762599331411,2.96073695,160.82,160.79,2.9]
[1762599332119,2.96073695,160.82,160.8,8.5]
[1762599332518,0.04073695,160.82,160.81,2.9]
[1762599336014,0.04073695,160.82,160.8,5.6]
[1762599336322,2.96073695,160.82,160.8,5.6]
[1762599336724,2.96073695,160.82,160.78,2.94228109]
[1762599338113,2.96073695,160.82,160.79,8.5003]
[1762599338316,2.96073695,160.82,160.79,2.9]
[1762599339415,2.96073695,160.82,160.8,5.6]
[1762599340123,4.73446593,160.81,160.8,8.5]
[1762599340326,4.73501355,160.81,160.8,8.5]
[1762599340729,0.04073695,160.82,160.81,2.9]
[1762599340928,4.77594675,160.82,160.81,2.9]
[1762599342423,4.77594675,160.82,160.78,2.94228109]
[1762599342424,2.92,160.81,160.78,2.94228109]
[1762599342626,4.7352098,160.8,160.78,0.04228109]
[1762599342817,4.7352098,160.79,160.78,0.04228109]
[1762599343020,7.7452098,160.79,160.78,0.04228109]
[1762599343220,4.7352098,160.79,160.78,0.04228109]
[1762599344525,7.7452098,160.79,160.78,0.04228109]
[1762599348628,12.72486245,160.79,160.78,0.04228109]
[1762599352635,4.7352098,160.79,160.78,3.04228109]
[1762599354635,3.01,160.81,160.79,5.6004]
[1762599354942,9.56864035,160.8,160.79,5.6004]
[1762599355139,9.56864035,160.8,160.79,8.6004]
[1762599356029,4.58927726,160.8,160.79,8.6004]
[1762599356235,57.23363695,160.82,160.8,5.5998]
[1762599356436,4.5896283,160.81,160.8,5.5998]
[1762599358644,7.5996283,160.81,160.8,5.5998]
[1762599359335,4.5896283,160.81,160.8,5.5998]
[1762599360945,4.59006123,160.81,160.8,5.5998]
[1762599361147,9.51136716,160.81,160.8,5.5998]
[1762599361353,9.51186172,160.81,160.8,5.5998]
[1762599363447,9.51186172,160.81,160.8,8.7198]
[1762599365447,12.66186172,160.81,160.8,5.5998]
[1762599368852,7.74055579,160.81,160.8,5.5998]
[1762599371658,4.59055579,160.81,160.8,8.7198]
[1762599372858,4.55167986,160.81,160.8,8.7198]
[1762599373862,0.04073695,160.82,160.81,3.12]
[1762599374162,9.50483624,160.82,160.81,3.12]
[1762599374363,4.59232919,160.82,160.81,3.12]
[1762599375468,9.50236863,160.82,160.81,3.12]
[1762599376966,3.15,160.81,160.8,5.5998]
[1762599377167,12.61124159,160.81,160.8,5.5998]
[1762599377467,7.70151007,160.81,160.8,5.5998]
[1762599380267,4.55151007,160.81,160.8,8.7198]
[1762599380470,0.04073695,160.82,160.81,3.12]
[1762599380663,4.59154669,160.82,160.81,3.12]
[1762599381269,0.04073695,160.82,160.81,3.12]
[1762599386573,7.73958881,160.82,160.8,5.5998]
[1762599386778,3.15,160.81,160.8,5.5998]
[1762599387474,2.00522038,160.81,160.8,8.7198]
[1762599388974,5.15522038,160.81,160.8,5.5998]
[1762599389574,3.15,160.8,160.78,5.64288109]
[1762599389780,3.15,160.8,160.78,8.76288109]
[1762599390778,5.15522038,160.81,160.79,5.6004]
[1762599393873,5.15522038,160.81,160.79,8.5604]
[1762599395281,5.15522038,160.81,160.79,5.6004]
[1762599395782,5.15522038,160.81,160.79,8.5604]
[1762599397480,4.52966943,160.8,160.79,8.5604]
[1762599400484,0.04073695,160.82,160.81,8.5597]
[1762599400777,4.57171569,160.82,160.81,8.5597]
[1762599401782,0.04073695,160.82,160.81,8.5597]
[1762599402580,2.96,160.9,160.86,3.01]
[1762599402787,7.81821733,160.89,160.86,3.01]
[1762599402984,4.85821733,160.88,160.86,3.01]
[1762599403176,2.96,160.89,160.86,3.01]
[1762599403384,2.96,160.89,160.86,8.6079]
[1762599403583,3.00568524,160.89,160.86,8.65367486]
[1762599405976,3.00568524,160.89,160.87,3.01]
[1762599408394,0.04568524,160.89,160.88,3.05]
[1762599422104,57.1729,160.96,160.93,3.06]
[1762599422305,2.99,160.96,160.93,3.06]
[1762599422704,2.99,160.96,160.94,8.6549]
[1762599422905,2.99,160.98,160.95,3.06]
[1762599423096,3.03559025,160.98,160.95,3.10234547]
[1762599423603,3.03559025,160.98,160.96,5.5944]
[1762599423906,3.03559025,160.98,160.96,8.6544]
[1762599425305,3.03559025,160.98,160.96,5.5944]
[1762599427905,6.16881388,160.98,160.95,0.04234547]
[1762599428096,2.99,160.97,160.95,0.04234547]
[1762599430008,2.99,160.97,160.95,5.63714547]
[1762599431303,6.16881388,160.98,160.96,8.6544]
[1762599432105,0.04559025,160.98,160.97,3.06]
[1762599432409,3.03559025,160.98,160.96,8.6544]
[1762599433411,0.04559025,160.98,160.97,3.06]
[1762599435707,2.99,161.04,161.0,3.06]
[1762599436503,2.99,161.04,161.02,5.5924]
[1762599437405,3.03372783,161.05,161.02,5.5924]
[1762599437610,3.03372783,161.05,161.02,8.6524]
[1762599438213,3.03372783,161.05,161.03,5.592]
[1762599438410,0.04372783,161.05,161.04,3.06]
[1762599444610,3.03372783,161.05,161.03,5.592]
[1762599445009,3.03372783,161.05,161.01,5.63374324]
[1762599445410,3.03372783,161.05,161.01,8.69374324]
[1762599445710,3.03372783,161.05,161.01,0.04124324]
[1762599445915,2.99,161.02,161.01,0.04124324]
[1762599454827,6.27322363,161.03,161.01,5.63384324]
[1762599455015,3.14,161.03,161.01,5.63384324]
[1762599458031,3.14,161.04,161.03,5.5919]
[1762599460324,5.13991878,161.04,161.03,5.5919]
[1762599461526,5.13991878,161.04,161.01,3.15124324]
[1762599462530,3.14,161.04,161.01,3.15124324]
[1762599462933,3.14,161.04,161.02,5.5924]
[1762599464026,3.14,161.04,161.02,8.7324]
[1762599465433,0.04372783,161.05,161.03,8.732]
[1762599467336,0.04372783,161.05,161.04,3.14]
[1762599470038,3.11372783,161.05,161.03,8.732]
[1762599472140,0.04372783,161.05,161.04,3.14]
[1762599476441,3.11372783,161.05,161.03,8.732]
[1762599480748,0.04372783,161.05,161.04,3.14]
[1762599481536,3.02372783,161.05,161.03,5.592]
[1762599481752,3.02372783,161.05,161.03,8.552]
[1762599482248,3.02372783,161.05,161.03,5.592]
[1762599482639,3.02372783,161.05,161.02,2.96]
[1762599484043,3.02372783,161.05,161.03,2.96]
[1762599484646,0.04372783,161.05,161.03,2.96]
[1762599484852,2.98,161.04,161.01,8.59384324]
[1762599485738,2.98,161.04,161.02,2.96]
[1762599487051,2.98,161.04,161.02,8.5523]
[1762599489350,5.02364661,161.05,161.03,2.96]
[1762599489651,3.02372783,161.05,161.03,8.552]
[1762599490251,0.04372783,161.05,161.04,2.96]
[1762599490451,4.79464881,161.05,161.04,2.96]
[1762599494956,0.04372783,161.05,161.04,2.96]
[1762599496257,4.79635084,161.05,161.04,2.96]
[1762599497058,7.77635084,161.05,161.04,2.96]
[1762599498061,4.79635084,161.05,161.04,2.96]
[1762599498859,7.77635084,161.05,161.04,2.96]
[1762599500560,4.79635084,161.05,161.04,2.96]
[1762599500752,2.98,161.04,161.01,5.63374324]
[1762599500955,2.98,161.02,161.01,0.04124324]
[1762599501356,7.73050434,161.02,161.01,0.04124324]
[1762599502766,12.3213657,161.02,161.01,0.04124324]
[1762599512374,7.57086136,161.02,161.01,0.04124324]
[1762599513465,4.59086136,161.02,161.01,3.08124324]
[1762599513670,3.20372783,161.05,161.01,3.08124324]
[1762599513863,5.15991878,161.04,161.01,3.08124324]
[1762599514672,5.15991878,161.04,161.02,8.6323]
[1762599515179,3.16,161.03,161.01,3.08124324]
[1762599515566,1.99991878,161.02,161.01,3.08124324]
[1762599515768,5.15991878,161.02,161.01,0.04124324]
[1762599516878,9.90235514,161.02,161.01,0.04124324]
[1762599518781,9.90235514,161.02,160.91,75.19201878]
[1762599518782,3.16,161.0,160.94,3.04]
[1762599518984,3.16,160.98,160.94,3.04]
[1762599519273,5.15991878,160.97,160.94,3.04]
[1762599519477,5.15991878,160.97,160.95,8.6348]
[1762599520483,3.16,160.97,160.95,8.6348]
[1762599523886,3.16,160.97,160.95,3.04]
[1762599527991,3.16,160.97,160.94,0.04353885]
[1762599528880,3.16,160.97,160.94,2.91353885]
[1762599530784,0.04471694,160.98,160.95,2.87]
[1762599532790,0.04471694,160.98,160.94,0.04353885]
[1762599532791,0.04471694,160.98,160.97,2.87]
[1762599551504,2.99471694,160.98,160.95,2.88]
[1762599551710,2.95,160.96,160.94,0.04353885]
[1762599553199,8.5446,160.96,160.94,0.04353885]
[1762599553402,2.95,160.94,160.9,2.88]
[1762599553710,7.4087213,160.93,160.84,2.88]
[1762599553905,2.95,160.93,160.84,2.88]
[1762599554510,0.04326336,160.9,160.87,2.92700183]
[1762599554912,2.99326336,160.9,160.87,2.92700183]
[1762599556206,2.99326336,160.9,160.87,8.52460183]
[1762599557909,0.04326336,160.9,160.88,8.4772]
[1762599558106,0.04326336,160.9,160.89,2.88]
[1762599560017,2.99326336,160.9,160.88,5.5972]
[1762599560220,2.99326336,160.9,160.87,0.04700183]
[1762599560821,2.99326336,160.9,160.88,2.88]
[1762599561225,2.99326336,160.9,160.87,2.92700183]
[1762599563923,2.99326336,160.9,160.87,0.04700183]
[1762599564625,2.95,160.89,160.87,0.04700183]
[1762599565124,2.95,160.88,160.84,2.2295067]
[1762599565321,2.95,160.88,160.8,59.32]
[1762599566117,2.99280164,160.86,160.83,5.5989]
[1762599567215,2.99280164,160.86,160.83,8.4789]
[1762599569018,2.99280164,160.86,160.84,2.88]
[1762599569933,0.04280164,160.86,160.85,2.88]
[1762599571224,0.04280164,160.86,160.85,2.99]
[1762599571434,0.04280164,160.86,160.84,8.5886]
[1762599573831,0.04280164,160.86,160.85,2.99]
[1762599590844,3.11280164,160.86,160.83,3.11]
[1762599591046,3.07,160.85,160.82,0.04750638]
[1762599591344,3.07,160.83,160.82,0.04750638]
[1762599593333,3.07,160.82,160.77,3.11]
[1762599593537,2.00369088,160.81,160.77,3.11]
[1762599593739,2.00369088,160.81,160.78,3.11]
[1762599594050,5.07369088,160.81,160.78,3.11]
[1762599594245,5.11690663,160.81,160.78,3.15296585]
[1762599595145,3.07,160.8,160.78,3.15296585]
[1762599595444,3.07,160.8,160.78,0.04296585]
[1762599595641,5.07369088,160.79,160.78,0.04296585]
[1762599595843,9.71293163,160.79,160.78,0.04296585]
[1762599596239,5.07369088,160.79,160.78,0.04296585]
[1762599596443,9.7146789,160.79,160.78,0.04296585]
[1762599596642,9.71497736,160.79,160.78,0.04296585]
[1762599599045,6.64497736,160.79,160.78,0.04296585]
[1762599599244,5.07369088,160.79,160.78,0.04296585]
[1762599600252,9.71355566,160.79,160.78,0.04296585]
[1762599600849,9.71385196,160.79,160.78,0.04296585]
[1762599603958,3.1,160.78,160.72,8.7026]
[1762599604251,3.1,160.76,160.72,3.1]
[1762599604957,3.14248934,160.76,160.72,3.14669364]
[1762599605554,3.14248934,160.76,160.72,0.04669364]
[1762599606458,8.74408934,160.76,160.72,0.04669364]
[1762599606651,3.1,160.75,160.72,0.04669364]
[1762599607055,3.1,160.75,160.72,3.14669364]
[1762599608055,10.70559088,160.75,160.72,0.04669364]
[1762599608257,3.1,160.74,160.72,0.04669364]
[1762599609452,8.7022,160.74,160.72,0.04669364]
[1762599609648,3.1,160.73,160.72,0.04669364]
[1762599610455,5.10369088,160.73,160.72,0.04669364]
[1762599611854,3.1,160.72,160.68,3.1]
[1762599612859,3.14034094,160.72,160.68,3.14745492]
[1762599613660,3.14034094,160.72,160.68,8.75145492]
[1762599614559,3.1,160.71,160.68,8.75145492]
[1762599617255,10.70699088,160.71,160.68,0.04745492]
[1762599617462,3.1,160.7,160.68,0.04745492]
[1762599618165,3.1,160.69,160.68,0.04745492]
[1762599621161,3.1,160.66,160.61,3.1]
[1762599621554,3.1,160.66,160.59,8.7073]
[1762599621755,3.1,160.64,160.6,3.1]
[1762599622062,3.1,160.63,160.6,3.1]
[1762599622262,3.1,160.63,160.6,3.13015897]
[1762599622758,3.1,160.63,160.6,0.03015897]
[1762599627370,3.1,160.62,160.6,0.03015897]
[1762599627867,5.10369088,160.61,160.6,0.03015897]
[1762599628071,3.1,160.6,160.55,3.1]
[1762599628966,3.1,160.58,160.55,3.1]
[1762599629561,3.1,160.58,160.54,8.709]
[1762599629765,3.1,160.58,160.54,3.1]
[1762599631566,3.08,160.56,160.52,5.6096]
[1762599631773,3.12517063,160.56,160.5,5.6103]
[1762599631972,3.08,160.54,160.5,8.5303]
[1762599632177,3.08,160.54,160.5,2.92]
[1762599633661,3.08,160.54,160.5,8.5303]
[1762599633871,3.08,160.54,160.5,2.92]
[1762599634975,3.08,160.54,160.5,8.5304]
[1762599636176,0.04052274,160.55,160.52,2.92]
[1762599636472,3.12390754,160.55,160.52,2.92]
[1762599639163,3.12390754,160.55,160.52,8.5297]
[1762599641374,3.12390754,160.55,160.52,2.92]
[1762599641670,3.12390754,160.55,160.51,2.92]
[1762599642573,3.12390754,160.55,160.52,3.01]
[1762599643581,3.12390754,160.55,160.52,8.6198]
[1762599646271,3.12390754,160.55,160.53,3.01]
[1762599646780,3.12390754,160.55,160.52,8.6198]
[1762599646974,3.12390754,160.55,160.52,3.01]
[1762599651079,0.04390754,160.55,160.52,8.6198]
[1762599651264,0.04390754,160.55,160.53,3.01]
[1762599651672,0.04390754,160.55,160.53,8.6194]
[1762599651976,0.04390754,160.55,160.54,3.01]
[1762599652475,3.13390754,160.55,160.51,5.6099]
[1762599652680,3.13390754,160.55,160.52,3.01]
[1762599653069,3.13390754,160.55,160.52,8.6197]
[1762599653274,3.13390754,160.55,160.53,3.01]
[1762599654580,3.13390754,160.55,160.43,81.89541991]
[1762599654581,3.13390754,160.55,160.47,3.01]
[1762599654877,3.09,160.52,160.47,3.01]
[1762599655583,3.09,160.51,160.47,3.01]
[1762599656179,3.13385369,160.53,160.47,3.01]
[1762599656478,3.13385369,160.53,160.44,3.01]
[1762599656686,0.04628097,160.5,160.44,3.01]
[1762599657275,0.04628097,160.5,160.42,3.01]
[1762599657276,3.09,160.49,160.42,3.01]
[1762599657474,3.13547238,160.47,160.42,3.01]
[1762599657782,3.13547238,160.47,160.44,8.6225]
[1762599658279,3.13547238,160.47,160.43,3.01]
[1762599658479,3.13626341,160.47,160.35,72.56528933]
[1762599658784,0.04760734,160.43,160.36,3.01]
[1762599659080,0.04197472,160.41,160.36,3.01]
[1762599659480,0.04197472,160.41,160.38,3.01]
[1762599660382,0.04197472,160.41,160.39,3.01]
[1762599660786,3.09,160.48,160.42,3.01]
[1762599661284,3.01,160.5,160.44,8.7124]
[1762599661584,3.01,160.5,160.45,3.1]
[1762599661783,0.04774953,160.49,160.47,3.1]
[1762599662576,0.04774953,160.49,160.47,8.7114]
[1762599662782,3.01,160.53,160.48,3.1]
[1762599663480,3.01,160.53,160.49,8.7107]
[1762599663682,3.01,160.53,160.5,3.1]
[1762599663874,3.05286551,160.53,160.5,3.1]
[1762599664186,3.05286551,160.53,160.49,0.04513901]
[1762599664187,3.01,160.51,160.49,0.04513901]
[1762599664577,0.04286551,160.53,160.49,3.14513901]
[1762599664777,3.05286551,160.53,160.49,3.14513901]
[1762599668093,3.05286551,160.53,160.5,3.1]
[1762599669677,3.05286551,160.53,160.51,3.1]
[1762599669880,0.04286551,160.53,160.51,3.1]
[1762599670981,0.04286551,160.53,160.51,8.7101]
[1762599672483,0.04286551,160.53,160.52,3.1]
[1762599672681,4.67751598,160.53,160.52,3.1]
[1762599673088,0.04286551,160.53,160.52,3.1]
[1762599673287,4.67935478,160.53,160.52,3.1]
[1762599673488,7.68935478,160.53,160.5,3.1]
[1762599673684,0.04286551,160.53,160.51,3.1]
[1762599676495,0.04286551,160.53,160.51,8.7101]
[1762599676882,0.04286551,160.53,160.52,3.1]
[1762599681096,8.6167,160.61,160.55,3.1]
[1762599681289,3.01,160.59,160.55,3.1]
[1762599681484,4.63728265,160.58,160.55,3.1]
[1762599681698,3.01,160.59,160.55,3.1]
[1762599681892,4.6365692,160.58,160.55,3.1]
[1762599682092,0.04108084,160.58,160.55,3.14167899]
[1762599683100,0.04108084,160.58,160.56,3.1]
[1762599684896,3.05108084,160.58,160.55,0.04167899]
[1762599685596,3.01,160.57,160.55,0.04167899]
[1762599686699,8.6181,160.57,160.55,0.04167899]
[1762599689092,3.01,160.56,160.55,0.04167899]
[1762599689291,3.01,160.55,160.5,3.1]
[1762599689905,3.01,160.57,160.53,3.1]
[1762599690302,3.05312003,160.57,160.53,3.14673229]
[1762599691001,3.05312003,160.57,160.53,8.75613229]
[1762599691395,3.05312003,160.57,160.54,3.01]
[1762599691598,3.11312003,160.57,160.54,8.619]
[1762599698107,3.11312003,160.57,160.55,3.01]
[1762599698313,0.04312003,160.57,160.56,3.01]
[1762599703413,6.21328632,160.63,160.58,3.16]
[1762599704113,2.95,160.62,160.58,3.16]
[1762599704313,5.00346245,160.62,160.58,3.20711358]
[1762599704507,5.00346245,160.62,160.59,3.16]
[1762599704714,2.05346245,160.62,160.59,3.16]
[1762599705414,2.05346245,160.62,160.6,3.16]
[1762599714536,2.95,160.61,160.59,5.6073]
[1762599714729,5.00346245,160.62,160.59,8.7673]
[1762599714931,5.00346245,160.62,160.6,3.16]
[1762599718230,0.04304985,160.62,160.6,8.7669]
[1762599718534,0.04304985,160.62,160.61,3.16]
[1762599720333,2.0104126,160.68,160.66,3.16]
[1762599721436,0.04013216,160.69,160.67,2.88]
[1762599721837,0.04013216,160.69,160.68,2.88]
[1762599724634,3.13013216,160.69,160.65,5.65000936]
[1762599724837,3.13013216,160.69,160.66,2.88]
[1762599725441,0.04013216,160.69,160.66,2.88]
[1762599725644,0.04013216,160.69,160.67,2.88]
[1762599726446,0.04013216,160.69,160.68,2.88]
[1762599726642,3.13013216,160.69,160.65,0.04490936]
[1762599726949,0.04013216,160.69,160.66,2.88]
[1762599727941,0.04013216,160.69,160.68,2.88]
[1762599731642,0.04013216,160.69,160.67,2.88]
[1762599734048,0.04013216,160.69,160.67,8.4845]
[1762599734349,0.04013216,160.69,160.68,2.88]
[1762599735853,3.09,160.68,160.65,0.04490936]
[1762599736044,0.04013216,160.69,160.65,2.92490936]
[1762599736945,0.04013216,160.69,160.66,5.6049]
[1762599737150,0.04013216,160.69,160.67,2.88]
[1762599738158,0.04013216,160.69,160.68,2.88]
[1762599748557,3.09,160.74,160.7,2.88]
[1762599749652,3.13574981,160.74,160.7,2.92436738]
[1762599751067,3.13574981,160.74,160.71,2.88]
[1762599751868,3.03,160.73,160.71,2.88]
[1762599752070,3.03,160.73,160.7,0.04436738]
[1762599752071,5.0404126,160.73,160.7,0.04436738]
[1762599752369,3.03,160.72,160.7,0.04436738]
[1762599754472,3.03,160.72,160.7,2.92436738]
[1762599756170,3.07574981,160.74,160.71,2.88]
[1762599756370,2.0104126,160.73,160.71,2.88]
[1762599756773,3.03,160.72,160.7,5.64786738]
[1762599756961,3.03,160.72,160.7,8.52786738]
[1762599757474,3.03,160.73,160.7,8.52786738]
[1762599757672,3.03,160.73,160.71,2.88]
[1762599758967,3.03,160.73,160.71,8.4831]
[1762599760078,3.03,160.73,160.7,0.04436738]
[1762599760573,3.03,160.73,160.7,5.64786738]
[1762599761467,7.65836241,160.74,160.7,5.64786738]
[1762599761468,3.03,160.71,160.7,0.04436738]
[1762599762669,2.9,160.69,160.63,10.81537204]
[1762599762871,2.9,160.66,160.63,3.11]
[1762599763274,2.9,160.66,160.64,3.11]
[1762599763465,4.9104126,160.67,160.64,3.11]
[1762599763671,4.95769564,160.67,160.64,3.15606253]
[1762599764477,2.94728304,160.67,160.64,3.15606253]
[1762599765373,0.04728304,160.67,160.64,3.15606253]
[1762599765778,0.04728304,160.67,160.66,3.11]
[1762599771985,7.44245648,160.72,160.69,3.11]
[1762599772182,2.9,160.72,160.69,3.11]
[1762599772982,2.94539275,160.72,160.7,3.11]
[1762599773378,0.04539275,160.72,160.7,3.11]
[1762599773775,0.04539275,160.72,160.7,8.7135]
[1762599773978,0.04539275,160.72,160.71,3.11]
[1762599775677,54.1829,160.77,160.69,0.0409947]
[1762599775985,2.9,160.78,160.73,3.11]
[1762599776886,0.04204086,160.77,160.75,3.11]
[1762599778786,2.94204086,160.77,160.75,3.11]
[1762599779081,4.53636951,160.76,160.74,0.04325786]
[1762599779286,0.04204086,160.77,160.74,0.04325786]
[1762599779287,6.03919139,160.75,160.74,0.04325786]
[1762599779493,2.9,160.76,160.74,0.04325786]
[1762599782285,0.04204086,160.77,160.74,3.13325786]
[1762599783082,0.04204086,160.77,160.75,8.6917]
[1762599783690,0.04204086,160.77,160.75,3.09]
[1762599785585,0.04204086,160.77,160.76,3.09]
[1762599786993,54.1829,160.82,160.78,3.09]
[1762599787382,2.88,160.85,160.78,3.09]
[1762599787584,2.88,160.85,160.82,3.09]
[1762599787986,2.92079325,160.85,160.82,3.13416972]
[1762599788895,0.04079325,160.85,160.83,3.09]
[1762599789585,6.01919139,160.92,160.84,3.09]
[1762599790285,11.61519139,160.92,160.85,8.6883]
[1762599790480,0.04638798,160.9,160.87,3.13784569]
[1762599790790,2.92638798,160.9,160.87,0.04784569]
[1762599791379,2.92638798,160.9,160.87,3.13784569]
[1762599794691,0.04638798,160.9,160.87,3.13784569]
[1762599795791,0.04638798,160.9,160.87,8.73524569]
[1762599795990,0.04638798,160.9,160.88,3.09]
[1762599798187,0.04638798,160.9,160.87,0.04784569]
[1762599798188,2.92638798,160.9,160.87,0.04784569]
[1762599798684,2.88,160.88,160.87,0.04784569]
[1762599798986,2.88,160.88,160.82,3.09]
[1762599799792,2.91951981,160.87,160.83,3.13160756]
[1762599800494,0.03951981,160.87,160.83,3.13160756]
[1762599801584,0.03951981,160.87,160.85,3.09]
[1762599802289,0.03951981,160.87,160.85,8.6882]
[1762599802490,0.03951981,160.87,160.86,3.09]
[1762599803593,6.01919139,160.92,160.88,3.09]
[1762599804195,2.88,160.92,160.88,3.09]
[1762599804590,2.88,160.92,160.88,3.13745936]
[1762599804591,2.92691996,160.92,160.88,3.13745936]
[1762599805699,0.04691996,160.92,160.89,3.09]
[1762599807296,0.04691996,160.92,160.89,8.6868]
[1762599807796,0.04691996,160.92,160.9,3.09]
[1762599815905,3.22691996,160.92,160.88,3.22745936]
[1762599817702,0.04691996,160.92,160.89,3.18]
[1762599818998,0.04691996,160.92,160.91,3.18]
[1762599820301,0.04691996,160.92,160.88,0.04745936]
[1762599820302,6.31919139,160.98,160.93,3.18]
[1762599820903,3.18,160.97,160.93,3.18]
[1762599821305,3.22184318,160.97,160.93,3.226726]
[1762599823014,3.22184318,160.97,160.94,3.1]
[1762599823615,0.04184318,160.97,160.94,8.6951]
[1762599823811,0.04184318,160.97,160.95,3.1]
[1762599825709,0.04184318,160.97,160.95,8.6948]
[1762599826112,0.04184318,160.97,160.95,3.1]
[1762599826307,0.04184318,160.97,160.93,8.742026]
[1762599826308,3.09184318,160.97,160.93,8.742026]
[1762599827218,3.09184318,160.97,160.94,3.1]
[1762599829215,3.09184318,160.97,160.95,3.1]
[1762599829408,0.04184318,160.97,160.95,3.1]
[1762599831818,0.04184318,160.97,160.95,8.6948]
[1762599832118,0.04184318,160.97,160.96,3.1]
[1762599836418,3.05,160.96,160.93,0.046726]
[1762599836626,3.05,160.96,160.93,3.146726]
[1762599837219,5.05168953,160.95,160.93,0.046726]
[1762599839018,3.05,160.94,160.93,0.046726]
[1762599840020,5.05168953,160.95,160.93,0.046726]
[1762599840323,5.63624318,160.97,160.93,3.146726]
[1762599840524,2.04353271,160.97,160.93,3.146726]
[1762599841417,4.92353271,160.97,160.93,3.146726]
[1762599841617,4.92353271,160.97,160.94,2.91]
[1762599842014,4.92353271,160.97,160.93,2.956726]
[1762599842015,2.88,160.96,160.93,2.956726]
[1762599843020,0.04184318,160.97,160.93,2.956726]
[1762599843324,2.92184318,160.97,160.93,2.956726]
[1762599843520,0.04184318,160.97,160.93,8.552126]
[1762599843825,0.04184318,160.97,160.93,2.956726]
[1762599844021,2.92184318,160.97,160.93,2.956726]
[1762599844813,8.51604318,160.97,160.93,0.046726]
[1762599845020,2.88,160.96,160.93,0.046726]
[1762599845825,8.4746,160.96,160.93,0.046726]
[1762599846026,2.88,160.95,160.93,0.046726]
[1762599847327,8.475,160.95,160.93,0.046726]
[1762599847530,8.475,160.95,160.89,0.7613]
[1762599847531,2.88,160.93,160.89,0.7613]
[1762599847829,2.88,160.9,160.83,2.91]
[1762599848030,2.88,160.87,160.83,2.91]
[1762599848231,2.88,160.87,160.77,11.52300452]
[1762599848427,4.88168953,160.79,160.72,2.91]
[1762599848819,0.04227712,160.77,160.74,2.95291931]
[1762599849032,2.92227712,160.77,160.74,2.95291931]
[1762599849930,0.04227712,160.77,160.74,2.95291931]
[1762599851731,0.04227712,160.77,160.76,2.91]
[1762599856136,0.04227712,160.77,160.75,2.91]
[1762599856632,0.04227712,160.77,160.74,2.95291931]
[1762599857131,2.92227712,160.77,160.74,2.95291931]
[1762599857331,2.92227712,160.77,160.74,0.04291931]
[1762599857633,2.88,160.76,160.74,0.04291931]
[1762599857831,4.88168953,160.75,160.74,0.04291931]
[1762599858135,2.88,160.74,160.68,2.91]
[1762599858734,2.00168953,160.71,160.6,2.91]
[1762599858939,4.88168953,160.71,160.62,2.91]
[1762599859136,0.04559635,160.67,160.64,8.55846468]
[1762599859337,2.92559635,160.67,160.64,2.95296468]
[1762599859741,0.04559635,160.67,160.64,2.95296468]
[1762599861734,0.04559635,160.67,160.66,2.91]
[1762599871843,0.04559635,160.67,160.65,8.7551]
[1762599872542,0.04559635,160.67,160.65,3.15]
[1762599872742,0.04559635,160.67,160.64,3.19296468]
[1762599873333,2.94559635,160.67,160.64,0.04296468]
[1762599875148,2.9,160.65,160.64,0.04296468]
[1762599876554,2.94559635,160.67,160.64,0.04296468]